[Event "*** Titled Tuesday Blitz"]
[Site "Chess.com"]
[Date "2020.04.21"]
[Round "8"]
[White "Qingdom"]
[Black "Nikolaj_6"]
[Result "0-1"]
[WhiteElo "2188"]
[BlackElo "2585"]
[TimeControl "180+1"]
[EndTime "11:39:59 PDT"]
[Termination "Nikolaj_6 won by resignation"]

1. d4 {[%clk 0:03:00.9]} 1... Nf6 {[%clk 0:02:59.4]} 2. Bg5 {[%clk 0:03:00.3]}
2... e6 {[%clk 0:02:58.2]} 3. e4 {[%clk 0:02:59.9]} 3... h6 {[%clk 0:02:57.3]}
4. Bxf6 {[%clk 0:02:59.7]} 4... Qxf6 {[%clk 0:02:57.8]} 5. c3 {[%clk 0:03:00.2]}
5... g6 {[%clk 0:02:56.9]} 6. Bd3 {[%clk 0:03:00]} 6... Bg7 {[%clk 0:02:57.1]}
7. Ne2 {[%clk 0:02:59]} 7... d6 {[%clk 0:02:57.3]} 8. O-O {[%clk 0:02:58.1]}
8... e5 {[%clk 0:02:56.1]} 9. f4 {[%clk 0:02:56.7]} 9... Qe7 {[%clk 0:02:47.5]}
10. Nd2 {[%clk 0:02:47.6]} 10... Bg4 {[%clk 0:02:45.4]} 11. Nf3 {[%clk
0:02:42.2]} 11... Nd7 {[%clk 0:02:35.7]} 12. h3 {[%clk 0:02:32.2]} 12... Bxf3
{[%clk 0:02:35.3]} 13. Rxf3 {[%clk 0:02:32.1]} 13... exd4 {[%clk 0:02:30.7]} 14.
cxd4 {[%clk 0:02:28.4]} 14... O-O-O {[%clk 0:02:30.3]} 15. Qa4 {[%clk
0:02:21.2]} 15... Kb8 {[%clk 0:02:29.1]} 16. Rc1 {[%clk 0:02:14.9]} 16... Nb6
{[%clk 0:02:29.1]} 17. Qa5 {[%clk 0:02:09]} 17... c5 {[%clk 0:02:26.3]} 18. Rc3
{[%clk 0:01:59.5]} 18... cxd4 {[%clk 0:02:13.6]} 19. Ra3 {[%clk 0:01:58.6]}
19... Nc8 {[%clk 0:02:12.9]} 20. b4 {[%clk 0:01:52.6]} 20... Qc7 {[%clk
0:02:10.8]} 21. Qa4 {[%clk 0:01:49.7]} 21... Qb6 {[%clk 0:02:07.6]} 22. Kh2
{[%clk 0:01:48.2]} 22... Rhe8 {[%clk 0:01:53.1]} 23. Rf1 {[%clk 0:01:45.8]}
23... Re7 {[%clk 0:01:53]} 24. Rc1 {[%clk 0:01:43.5]} 24... Rc7 {[%clk
0:01:52.7]} 25. Rxc7 {[%clk 0:01:30.7]} 25... Qxc7 {[%clk 0:01:51.1]} 26. Qb5
{[%clk 0:01:31]} 26... g5 {[%clk 0:01:43.9]} 27. Qd5 {[%clk 0:01:19.6]} 27...
gxf4 {[%clk 0:01:41.2]} 28. Nxf4 {[%clk 0:01:16.8]} 28... Be5 {[%clk 0:01:40.5]}
29. g3 {[%clk 0:01:17.2]} 29... Nb6 {[%clk 0:01:40.6]} 30. Qa5 {[%clk
0:01:13.4]} 30... Nc8 {[%clk 0:01:39.2]} 31. Qxc7+ {[%clk 0:01:11.1]} 31... Kxc7
{[%clk 0:01:38.7]} 32. Nd5+ {[%clk 0:01:11.2]} 32... Kb8 {[%clk 0:01:38.8]} 33.
Rb3 {[%clk 0:01:04.3]} 33... Nb6 {[%clk 0:01:35.8]} 34. Nxb6 {[%clk 0:01:00.8]}
34... axb6 {[%clk 0:01:36.7]} 35. Rb2 {[%clk 0:00:59.8]} 35... Rg8 {[%clk
0:01:31]} 36. Rg2 {[%clk 0:00:57.9]} 36... f6 {[%clk 0:01:31]} 37. h4 {[%clk
0:00:55.6]} 37... Kc7 {[%clk 0:01:19.5]} 38. b5 {[%clk 0:00:54.4]} 38... Ra8
{[%clk 0:01:18.3]} 39. Rc2+ {[%clk 0:00:42.3]} 39... Kd8 {[%clk 0:01:17.7]} 40.
Kh3 {[%clk 0:00:42.5]} 40... Ra3 {[%clk 0:01:16.7]} 41. Rd2 {[%clk 0:00:42]}
41... Ke7 {[%clk 0:01:10.6]} 42. Kg4 {[%clk 0:00:42.1]} 42... h5+ {[%clk
0:01:10.1]} 43. Kxh5 {[%clk 0:00:39]} 43... Bxg3 {[%clk 0:01:10.2]} 44. Kg4
{[%clk 0:00:39.2]} 44... Be1 {[%clk 0:01:06.2]} 45. Rd1 {[%clk 0:00:38.1]} 45...
Bf2 {[%clk 0:01:06.4]} 46. h5 {[%clk 0:00:34.2]} 46... Be3 {[%clk 0:01:01.3]}
47. Kf5 {[%clk 0:00:32.6]} 47... Rxa2 {[%clk 0:01:00.7]} 48. Rh1 {[%clk
0:00:29.7]} 48... Rf2+ {[%clk 0:01:00.4]} 49. Kg6 {[%clk 0:00:29.4]} 49... Rg2+
{[%clk 0:01:00]} 50. Kh7 {[%clk 0:00:27.7]} 50... Rd2 {[%clk 0:00:59]} 51. Bc4
{[%clk 0:00:27.1]} 51... d3 {[%clk 0:00:58.1]} 52. h6 {[%clk 0:00:21]} 52... Bf4
{[%clk 0:00:54.2]} 53. Rf1 {[%clk 0:00:20]} 53... Bg5 {[%clk 0:00:50.9]} 54. Rf3
{[%clk 0:00:19.9]} 54... Rh2 {[%clk 0:00:49.2]} 55. Rxd3 {[%clk 0:00:19.9]}
55... Rxh6+ {[%clk 0:00:48.9]} 56. Kg7 {[%clk 0:00:20.3]} 56... Rh4 {[%clk
0:00:48.7]} 57. Bd5 {[%clk 0:00:20.4]} 57... Rh2 {[%clk 0:00:45]} 58. Bxb7
{[%clk 0:00:20]} 58... Ke6 {[%clk 0:00:44.2]} 59. Bd5+ {[%clk 0:00:19.5]} 59...
Ke5 {[%clk 0:00:44.6]} 60. Rf3 {[%clk 0:00:18.8]} 60... Bf4 {[%clk 0:00:43]} 61.
Ra3 {[%clk 0:00:17.8]} 61... Rg2+ {[%clk 0:00:42.5]} 62. Kf7 {[%clk 0:00:17.5]}
62... Bh6 {[%clk 0:00:40.9]} 63. Ra6 {[%clk 0:00:16.5]} 63... Rg7+ {[%clk
0:00:40.4]} 64. Ke8 {[%clk 0:00:16.6]} 64... Be3 {[%clk 0:00:40]} 65. Ra3 {[%clk
0:00:14.2]} 65... Bc5 {[%clk 0:00:39.4]} 66. Rf3 {[%clk 0:00:12.9]} 66... Rg5
{[%clk 0:00:38.3]} 67. Kf7 {[%clk 0:00:11.5]} 67... f5 {[%clk 0:00:37.8]} 68.
Rxf5+ {[%clk 0:00:10.3]} 68... Rxf5+ {[%clk 0:00:37.6]} 69. exf5 {[%clk
0:00:10.7]} 69... Kxd5 {[%clk 0:00:38.2]} 70. Ke7 {[%clk 0:00:10.2]} 70... Kc4
{[%clk 0:00:38.2]} 71. Ke6 {[%clk 0:00:09.6]} 71... d5 {[%clk 0:00:38.4]} 72.
Ke5 {[%clk 0:00:09.5]} 72... d4 {[%clk 0:00:38.7]} 73. Ke4 {[%clk 0:00:09.8]}
73... d3 {[%clk 0:00:38.9]} 74. Kf3 {[%clk 0:00:09.3]} 74... Kc3 {[%clk
0:00:38.9]} 75. f6 {[%clk 0:00:08.7]} 75... Kc2 {[%clk 0:00:38.7]} 76. f7 {[%clk
0:00:08.9]} 76... d2 {[%clk 0:00:38.9]} 77. f8=Q {[%clk 0:00:09]} 77... d1=Q+
{[%clk 0:00:38.4]} 78. Kg2 {[%clk 0:00:08.5]} 78... Qg4+ {[%clk 0:00:36.8]} 0-1

[Event "*** Titled Tuesday Blitz"]
[Site "Chess.com"]
[Date "2020.04.21"]
[Round "8"]
[White "Shield12"]
[Black "murtas73"]
[Result "0-1"]
[WhiteElo "2889"]
[BlackElo "2647"]
[TimeControl "180+1"]
[EndTime "11:40:00 PDT"]
[Termination "murtas73 won by resignation"]

1. e4 {[%clk 0:03:00.9]} 1... e6 {[%clk 0:02:59.8]} 2. d4 {[%clk 0:03:01.1]}
2... d5 {[%clk 0:03:00.4]} 3. Nd2 {[%clk 0:03:00.6]} 3... Be7 {[%clk 0:03:00.2]}
4. e5 {[%clk 0:03:00]} 4... c5 {[%clk 0:02:59.6]} 5. c3 {[%clk 0:03:00]} 5...
Nc6 {[%clk 0:03:00]} 6. Bd3 {[%clk 0:03:00.1]} 6... Bd7 {[%clk 0:03:00.4]} 7.
Ne2 {[%clk 0:02:57.1]} 7... cxd4 {[%clk 0:02:58.3]} 8. cxd4 {[%clk 0:02:58]}
8... Qb6 {[%clk 0:02:58.4]} 9. Nf3 {[%clk 0:02:56.8]} 9... Nb4 {[%clk
0:02:58.1]} 10. Bb1 {[%clk 0:02:56.5]} 10... Bb5 {[%clk 0:02:56.5]} 11. a3
{[%clk 0:02:56.1]} 11... Qa6 {[%clk 0:02:51.7]} 12. h4 {[%clk 0:02:38.9]} 12...
Nd3+ {[%clk 0:02:43.9]} 13. Bxd3 {[%clk 0:02:37.6]} 13... Bxd3 {[%clk
0:02:44.8]} 14. Rh3 {[%clk 0:02:29.9]} 14... Rc8 {[%clk 0:02:39.8]} 15. Nc3
{[%clk 0:02:29.7]} 15... Bf5 {[%clk 0:02:36.2]} 16. Rg3 {[%clk 0:02:29.2]} 16...
Bf8 {[%clk 0:02:33]} 17. h5 {[%clk 0:02:26.5]} 17... h6 {[%clk 0:02:31.5]} 18.
Nh4 {[%clk 0:02:21.9]} 18... Bh7 {[%clk 0:02:27.5]} 19. Be3 {[%clk 0:02:13.8]}
19... Ne7 {[%clk 0:02:26.7]} 20. Qe2 {[%clk 0:02:06.2]} 20... Qxe2+ {[%clk
0:02:24.1]} 21. Kxe2 {[%clk 0:02:06.3]} 21... Nc6 {[%clk 0:02:25]} 22. f4 {[%clk
0:01:59.7]} 22... Be7 {[%clk 0:02:24.7]} 23. Rh1 {[%clk 0:01:52.4]} 23... Rg8
{[%clk 0:02:24]} 24. Ng6 {[%clk 0:01:45.2]} 24... Na5 {[%clk 0:02:16.3]} 25. f5
{[%clk 0:01:37.2]} 25... Nc4 {[%clk 0:02:13.9]} 26. Bc1 {[%clk 0:01:34.6]} 26...
Kd7 {[%clk 0:02:06]} 27. fxe6+ {[%clk 0:01:27.9]} 27... fxe6 {[%clk 0:02:04.8]}
28. Rf1 {[%clk 0:01:26.4]} 28... Ke8 {[%clk 0:01:51.7]} 29. Rgf3 {[%clk
0:01:11.2]} 29... Bxg6 {[%clk 0:01:41.2]} 30. hxg6 {[%clk 0:01:12.1]} 30... Kd7
{[%clk 0:01:32.2]} 31. Rf7 {[%clk 0:01:08.3]} 31... Rcf8 {[%clk 0:01:31.7]} 32.
g4 {[%clk 0:01:05.4]} 32... Rxf7 {[%clk 0:01:27]} 33. Rxf7 {[%clk 0:01:05.4]}
33... a6 {[%clk 0:01:23.7]} 34. b3 {[%clk 0:01:05.1]} 34... Na5 {[%clk
0:01:21.4]} 35. b4 {[%clk 0:00:52.4]} 35... Nc6 {[%clk 0:01:21.1]} 36. Kd3
{[%clk 0:00:50.2]} 36... Nd8 {[%clk 0:01:20.2]} 37. Rf3 {[%clk 0:00:46.2]} 37...
Rf8 {[%clk 0:01:20]} 38. Rxf8 {[%clk 0:00:45.4]} 38... Bxf8 {[%clk 0:01:19.8]}
39. Ne2 {[%clk 0:00:45.9]} 39... Nc6 {[%clk 0:01:18.2]} 40. Ng3 {[%clk 0:00:44]}
40... Ne7 {[%clk 0:01:10.9]} 41. g5 {[%clk 0:00:44.2]} 41... hxg5 {[%clk
0:01:08.5]} 42. Bxg5 {[%clk 0:00:43.8]} 42... Nxg6 {[%clk 0:01:08.9]} 43. Nh5
{[%clk 0:00:41.7]} 43... Ne7 {[%clk 0:01:08.3]} 44. Bxe7 {[%clk 0:00:40.5]}
44... Kxe7 {[%clk 0:01:07.7]} 45. Ke3 {[%clk 0:00:38.3]} 45... Kf7 {[%clk
0:01:06.4]} 46. Kf3 {[%clk 0:00:36.5]} 46... Be7 {[%clk 0:01:04.4]} 47. Nf4
{[%clk 0:00:34.6]} 47... Bg5 {[%clk 0:01:01.4]} 48. Nd3 {[%clk 0:00:34.6]} 48...
b6 {[%clk 0:01:01.2]} 49. a4 {[%clk 0:00:33.1]} 49... Bd8 {[%clk 0:00:58.9]} 50.
b5 {[%clk 0:00:31.5]} 50... a5 {[%clk 0:00:57.7]} 51. Kg4 {[%clk 0:00:27.2]}
51... Be7 {[%clk 0:00:57.2]} 52. Ne1 {[%clk 0:00:26.2]} 52... Bb4 {[%clk
0:00:55.7]} 53. Nf3 {[%clk 0:00:26.2]} 53... Bc3 {[%clk 0:00:55.3]} 54. Ng5+
{[%clk 0:00:26.4]} 54... Ke7 {[%clk 0:00:54.4]} 55. Nf3 {[%clk 0:00:27.3]} 55...
Bb2 {[%clk 0:00:51.5]} 56. Kh5 {[%clk 0:00:27.3]} 56... Kf7 {[%clk 0:00:49.1]}
57. Ng5+ {[%clk 0:00:27.5]} 57... Ke7 {[%clk 0:00:49]} 58. Nf3 {[%clk
0:00:28.4]} 58... Bc1 {[%clk 0:00:47.2]} 59. Kg6 {[%clk 0:00:26.4]} 59... Kf8
{[%clk 0:00:45.5]} 60. Ng1 {[%clk 0:00:20.5]} 60... Bd2 {[%clk 0:00:44.2]} 61.
Nf3 {[%clk 0:00:20.1]} 61... Be3 {[%clk 0:00:44.3]} 62. Kh5 {[%clk 0:00:19.9]}
62... Kf7 {[%clk 0:00:42.9]} 63. Kg4 {[%clk 0:00:20.2]} 63... Kg6 {[%clk
0:00:40.7]} 64. Nh4+ {[%clk 0:00:20.1]} 64... Kh7 {[%clk 0:00:39.6]} 65. Nf3
{[%clk 0:00:21]} 65... Kh6 {[%clk 0:00:38.6]} 66. Kh4 {[%clk 0:00:20.5]} 66...
g5+ {[%clk 0:00:36.8]} 67. Kg4 {[%clk 0:00:20.7]} 67... Kg6 {[%clk 0:00:37.7]}
68. Kg3 {[%clk 0:00:18.5]} 68... Kf5 {[%clk 0:00:37.5]} 69. Kg2 {[%clk
0:00:17.3]} 69... g4 {[%clk 0:00:35.3]} 70. Ne1 {[%clk 0:00:15.3]} 70... Bxd4
{[%clk 0:00:34.1]} 71. Nd3 {[%clk 0:00:15.3]} 71... Ke4 {[%clk 0:00:32.8]} 0-1

[Event "*** Titled Tuesday Blitz"]
[Site "Chess.com"]
[Date "2020.04.21"]
[Round "8"]
[White "Zq1"]
[Black "Anurag328"]
[Result "1/2-1/2"]
[WhiteElo "2574"]
[BlackElo "2713"]
[TimeControl "180+1"]
[EndTime "11:40:02 PDT"]
[Termination "Game drawn by repetition"]

1. d4 {[%clk 0:03:00.9]} 1... Nf6 {[%clk 0:02:59.4]} 2. c4 {[%clk 0:03:00.2]}
2... c5 {[%clk 0:03:00]} 3. Nf3 {[%clk 0:02:59.3]} 3... cxd4 {[%clk 0:03:00.1]}
4. Nxd4 {[%clk 0:02:59.4]} 4... g6 {[%clk 0:03:00.6]} 5. Nc3 {[%clk 0:02:58.5]}
5... Bg7 {[%clk 0:03:01.1]} 6. e4 {[%clk 0:02:58.6]} 6... d6 {[%clk 0:03:01.8]}
7. Be2 {[%clk 0:02:57.3]} 7... Nc6 {[%clk 0:03:00.7]} 8. Be3 {[%clk 0:02:57]}
8... O-O {[%clk 0:03:00.8]} 9. O-O {[%clk 0:02:55.7]} 9... Nxd4 {[%clk
0:02:53.9]} 10. Bxd4 {[%clk 0:02:55.3]} 10... a5 {[%clk 0:02:54.6]} 11. f3
{[%clk 0:02:47.5]} 11... Be6 {[%clk 0:02:54.7]} 12. Rc1 {[%clk 0:02:45.8]} 12...
Nd7 {[%clk 0:02:50.4]} 13. Bxg7 {[%clk 0:02:41]} 13... Kxg7 {[%clk 0:02:50.5]}
14. Qd4+ {[%clk 0:02:40.8]} 14... Kg8 {[%clk 0:02:44.9]} 15. f4 {[%clk
0:02:40.2]} 15... Qb6 {[%clk 0:02:43.3]} 16. Qxb6 {[%clk 0:02:39.9]} 16... Nxb6
{[%clk 0:02:44.2]} 17. b3 {[%clk 0:02:39.3]} 17... a4 {[%clk 0:02:40.2]} 18. f5
{[%clk 0:02:35.4]} 18... Bd7 {[%clk 0:02:40.2]} 19. b4 {[%clk 0:02:25.3]} 19...
Rac8 {[%clk 0:02:21.9]} 20. fxg6 {[%clk 0:02:21.1]} 20... hxg6 {[%clk
0:02:19.2]} 21. Nd5 {[%clk 0:02:21]} 21... Nxd5 {[%clk 0:02:17.3]} 22. cxd5
{[%clk 0:02:12.5]} 22... a3 {[%clk 0:02:08.1]} 23. Kf2 {[%clk 0:02:05.4]} 23...
f5 {[%clk 0:02:05.7]} 24. Ke3 {[%clk 0:02:02.4]} 24... f4+ {[%clk 0:01:47.8]}
25. Kd4 {[%clk 0:02:00.9]} 25... g5 {[%clk 0:01:43.3]} 26. h3 {[%clk 0:01:59]}
26... e5+ {[%clk 0:01:31.2]} 27. dxe6 {[%clk 0:01:56]} 27... Bxe6 {[%clk
0:01:31.7]} 28. Bc4 {[%clk 0:01:50.6]} 28... Kf7 {[%clk 0:00:57.3]} 29. h4
{[%clk 0:01:49]} 29... Bxc4 {[%clk 0:00:45.6]} 30. Rxc4 {[%clk 0:01:47.6]} 30...
Rxc4+ {[%clk 0:00:46.2]} 31. Kxc4 {[%clk 0:01:47.5]} 31... Ke6 {[%clk
0:00:47.1]} 32. hxg5 {[%clk 0:01:35]} 32... Ke5 {[%clk 0:00:47.3]} 33. Kd3
{[%clk 0:01:26.5]} 33... Rg8 {[%clk 0:00:47.2]} 34. g3 {[%clk 0:01:25.4]} 34...
fxg3 {[%clk 0:00:43.3]} 35. Rf5+ {[%clk 0:01:24.4]} 35... Ke6 {[%clk 0:00:43.9]}
36. Ke3 {[%clk 0:01:20.1]} 36... Rc8 {[%clk 0:00:33]} 37. g6 {[%clk 0:01:12.2]}
37... g2 {[%clk 0:00:13.7]} 38. Rg5 {[%clk 0:01:11.7]} 38... Kf6 {[%clk
0:00:13.1]} 39. Rxg2 {[%clk 0:01:10.7]} 39... Kg7 {[%clk 0:00:11.8]} 40. Kd4
{[%clk 0:01:07.6]} 40... b5 {[%clk 0:00:11.6]} 41. Kd5 {[%clk 0:00:45.1]} 41...
Rc4 {[%clk 0:00:10.2]} 42. Rg3 {[%clk 0:00:45.1]} 42... Rxb4 {[%clk 0:00:10.3]}
43. Rxa3 {[%clk 0:00:41.8]} 43... Kxg6 {[%clk 0:00:10.4]} 44. Rb3 {[%clk
0:00:41.6]} 44... Ra4 {[%clk 0:00:08.1]} 45. Rxb5 {[%clk 0:00:32]} 45... Rxa2
{[%clk 0:00:04.2]} 46. Kxd6 {[%clk 0:00:31.6]} 46... Kf7 {[%clk 0:00:04.8]} 47.
Rb7+ {[%clk 0:00:20.1]} 47... Ke8 {[%clk 0:00:05.2]} 48. Rb6 {[%clk 0:00:20.2]}
48... Ra7 {[%clk 0:00:03.2]} 49. e5 {[%clk 0:00:12.4]} 49... Rd7+ {[%clk
0:00:03]} 50. Ke6 {[%clk 0:00:12]} 50... Re7+ {[%clk 0:00:03.5]} 51. Kd5 {[%clk
0:00:12.1]} 51... Rd7+ {[%clk 0:00:03.7]} 52. Ke6 {[%clk 0:00:06.7]} 52... Re7+
{[%clk 0:00:04.1]} 53. Kf5 {[%clk 0:00:07.3]} 53... Rf7+ {[%clk 0:00:04.7]} 54.
Ke4 {[%clk 0:00:07.9]} 54... Rc7 {[%clk 0:00:03.7]} 55. Rd6 {[%clk 0:00:06.2]}
55... Ke7 {[%clk 0:00:03.9]} 56. Rh6 {[%clk 0:00:06.1]} 56... Rc1 {[%clk
0:00:04.4]} 57. Rh7+ {[%clk 0:00:06.2]} 57... Ke8 {[%clk 0:00:04.7]} 58. Kf5
{[%clk 0:00:05.1]} 58... Rc6 {[%clk 0:00:05.4]} 59. Rg7 {[%clk 0:00:04]} 59...
Ra6 {[%clk 0:00:05.7]} 60. Rb7 {[%clk 0:00:03.9]} 60... Rc6 {[%clk 0:00:06]} 61.
Rb8+ {[%clk 0:00:01.3]} 61... Ke7 {[%clk 0:00:06.4]} 62. Rb7+ {[%clk 0:00:02]}
62... Ke8 {[%clk 0:00:07]} 63. Rb8+ {[%clk 0:00:02.7]} 63... Ke7 {[%clk
0:00:07.7]} 64. Rb7+ {[%clk 0:00:03.4]} 64... Ke8 {[%clk 0:00:08.2]} 1/2-1/2

[Event "*** Titled Tuesday Blitz"]
[Site "Chess.com"]
[Date "2020.04.21"]
[Round "8"]
[White "wannabe2700"]
[Black "thedjoker98"]
[Result "1-0"]
[WhiteElo "2664"]
[BlackElo "2488"]
[TimeControl "180+1"]
[EndTime "11:40:03 PDT"]
[Termination "wannabe2700 won by checkmate"]

1. b3 {[%clk 0:02:22.4]} 1... e5 {[%clk 0:02:39.5]} 2. Bb2 {[%clk 0:02:20.9]}
2... Nc6 {[%clk 0:02:40]} 3. e3 {[%clk 0:02:20.8]} 3... Nf6 {[%clk 0:02:38]} 4.
Bb5 {[%clk 0:02:21.1]} 4... Bd6 {[%clk 0:02:37.6]} 5. Na3 {[%clk 0:02:19.4]}
5... Be7 {[%clk 0:02:37.8]} 6. Nc4 {[%clk 0:02:14.8]} 6... d6 {[%clk 0:02:37.7]}
7. d4 {[%clk 0:02:12.3]} 7... exd4 {[%clk 0:02:37.3]} 8. exd4 {[%clk 0:02:13.2]}
8... O-O {[%clk 0:02:36.2]} 9. Nf3 {[%clk 0:02:13.8]} 9... Bg4 {[%clk
0:02:34.9]} 10. O-O {[%clk 0:02:12.2]} 10... Nd5 {[%clk 0:02:32]} 11. Ne3 {[%clk
0:02:09.4]} 11... Nxe3 {[%clk 0:02:31.6]} 12. fxe3 {[%clk 0:02:10.3]} 12... Bf6
{[%clk 0:02:16.1]} 13. h3 {[%clk 0:02:07.3]} 13... Bh5 {[%clk 0:02:15.7]} 14. g4
{[%clk 0:01:40.4]} 14... Bg6 {[%clk 0:02:15.4]} 15. Bd3 {[%clk 0:01:40.6]} 15...
d5 {[%clk 0:02:10.9]} 16. Bxg6 {[%clk 0:01:25.9]} 16... hxg6 {[%clk 0:02:09.7]}
17. Qd3 {[%clk 0:01:26.5]} 17... Re8 {[%clk 0:02:08.3]} 18. Rae1 {[%clk
0:01:25.3]} 18... Qd6 {[%clk 0:02:06.4]} 19. Kg2 {[%clk 0:01:25.2]} 19... Re6
{[%clk 0:01:49.7]} 20. c4 {[%clk 0:01:22.1]} 20... Rae8 {[%clk 0:01:44.7]} 21.
Re2 {[%clk 0:01:00.5]} 21... a6 {[%clk 0:01:12.4]} 22. Rfe1 {[%clk 0:00:52.6]}
22... Re4 {[%clk 0:01:07.7]} 23. c5 {[%clk 0:00:29.2]} 23... Qe7 {[%clk
0:01:02.6]} 24. Nd2 {[%clk 0:00:27.9]} 24... Re6 {[%clk 0:00:59.9]} 25. e4
{[%clk 0:00:26.6]} 25... Bh4 {[%clk 0:00:58.4]} 26. Rf1 {[%clk 0:00:26]} 26...
dxe4 {[%clk 0:00:57.8]} 27. Qc4 {[%clk 0:00:23.4]} 27... Bf6 {[%clk 0:00:37.6]}
28. d5 {[%clk 0:00:22.3]} 28... Bxb2 {[%clk 0:00:20.6]} 29. dxe6 {[%clk
0:00:22.2]} 29... Qxe6 {[%clk 0:00:21.5]} 30. Rxe4 {[%clk 0:00:20.7]} 30... Qd7
{[%clk 0:00:20.6]} 31. Rxe8+ {[%clk 0:00:19.8]} 31... Qxe8 {[%clk 0:00:21.5]}
32. Nf3 {[%clk 0:00:19.8]} 32... Bf6 {[%clk 0:00:21]} 33. Qd5 {[%clk 0:00:18.6]}
33... Ne7 {[%clk 0:00:19.4]} 34. Qxb7 {[%clk 0:00:18]} 34... Qd7 {[%clk
0:00:19.9]} 35. Qe4 {[%clk 0:00:17.3]} 35... Nd5 {[%clk 0:00:18]} 36. g5 {[%clk
0:00:17]} 36... Be7 {[%clk 0:00:17.5]} 37. Ne5 {[%clk 0:00:16]} 37... Qe6 {[%clk
0:00:17.6]} 38. Re1 {[%clk 0:00:16]} 38... Bxc5 {[%clk 0:00:17.3]} 39. Nd3
{[%clk 0:00:14.5]} 39... Ne3+ {[%clk 0:00:16.6]} 40. Rxe3 {[%clk 0:00:14]} 40...
Bxe3 {[%clk 0:00:16.4]} 41. Qxe6 {[%clk 0:00:13.4]} 41... fxe6 {[%clk
0:00:17.3]} 42. h4 {[%clk 0:00:13.4]} 42... Kf7 {[%clk 0:00:17.3]} 43. Ne5+
{[%clk 0:00:12.9]} 43... Ke8 {[%clk 0:00:15.7]} 44. Nxg6 {[%clk 0:00:13.1]}
44... Kd7 {[%clk 0:00:13.2]} 45. Kf3 {[%clk 0:00:13.5]} 45... Bc1 {[%clk
0:00:13.3]} 46. Kg4 {[%clk 0:00:12.6]} 46... Kd6 {[%clk 0:00:12.8]} 47. Kf3
{[%clk 0:00:10.9]} 47... Kd5 {[%clk 0:00:10.6]} 48. Ne7+ {[%clk 0:00:10.7]}
48... Kd4 {[%clk 0:00:09.1]} 49. Nc6+ {[%clk 0:00:10.9]} 49... Kc3 {[%clk
0:00:09.2]} 50. Ke4 {[%clk 0:00:10.7]} 50... Kb2 {[%clk 0:00:09]} 51. Nb4 {[%clk
0:00:09.9]} 51... Bd2 {[%clk 0:00:07.7]} 52. Nxa6 {[%clk 0:00:10]} 52... Kxa2
{[%clk 0:00:07.7]} 53. Nxc7 {[%clk 0:00:07.8]} 53... Kxb3 {[%clk 0:00:07.6]} 54.
Nxe6 {[%clk 0:00:08.1]} 54... g6 {[%clk 0:00:07.7]} 55. Nf4 {[%clk 0:00:07.9]}
55... Be1 {[%clk 0:00:07.7]} 56. Nxg6 {[%clk 0:00:07.8]} 56... Kc4 {[%clk
0:00:08]} 57. h5 {[%clk 0:00:08.1]} 57... Bd2 {[%clk 0:00:08]} 58. Kf5 {[%clk
0:00:06.7]} 58... Kd5 {[%clk 0:00:08]} 59. h6 {[%clk 0:00:07.2]} 59... Kd6
{[%clk 0:00:07.9]} 60. h7 {[%clk 0:00:08.1]} 60... Bc3 {[%clk 0:00:08.7]} 61.
h8=Q {[%clk 0:00:07.6]} 61... Bxh8 {[%clk 0:00:07.5]} 62. Nxh8 {[%clk
0:00:08.5]} 62... Ke7 {[%clk 0:00:08.4]} 63. Ng6+ {[%clk 0:00:08.6]} 63... Kf7
{[%clk 0:00:09.3]} 64. Nf4 {[%clk 0:00:09]} 64... Kg7 {[%clk 0:00:10.2]} 65. g6
{[%clk 0:00:09.7]} 65... Kg8 {[%clk 0:00:10.4]} 66. Kf6 {[%clk 0:00:10.2]} 66...
Kh8 {[%clk 0:00:11.3]} 67. Ne6 {[%clk 0:00:09.5]} 67... Kg8 {[%clk 0:00:12.2]}
68. g7 {[%clk 0:00:09.9]} 68... Kh7 {[%clk 0:00:12.3]} 69. Kf7 {[%clk
0:00:10.4]} 69... Kh6 {[%clk 0:00:13.2]} 70. g8=Q {[%clk 0:00:10.9]} 70... Kh5
{[%clk 0:00:14.1]} 71. Qg5# {[%clk 0:00:11.3]} 1-0

[Event "*** Titled Tuesday Blitz"]
[Site "Chess.com"]
[Date "2020.04.21"]
[Round "8"]
[White "mirochka"]
[Black "bupunsu01"]
[Result "0-1"]
[WhiteElo "2170"]
[BlackElo "2290"]
[TimeControl "180+1"]
[EndTime "11:40:06 PDT"]
[Termination "bupunsu01 won on time"]

1. e4 {[%clk 0:03:00.9]} 1... Nf6 {[%clk 0:02:58.4]} 2. e5 {[%clk 0:03:00.6]}
2... Nd5 {[%clk 0:02:58.1]} 3. d4 {[%clk 0:02:59.8]} 3... d6 {[%clk 0:02:58]} 4.
Nf3 {[%clk 0:02:57.7]} 4... Bg4 {[%clk 0:02:56.8]} 5. Be2 {[%clk 0:02:56.2]}
5... e6 {[%clk 0:02:52.7]} 6. O-O {[%clk 0:02:54.7]} 6... Be7 {[%clk 0:02:52.4]}
7. c4 {[%clk 0:02:53.6]} 7... Nb6 {[%clk 0:02:51.9]} 8. Nc3 {[%clk 0:02:53.8]}
8... O-O {[%clk 0:02:48.7]} 9. Be3 {[%clk 0:02:49.4]} 9... Nc6 {[%clk
0:02:45.8]} 10. exd6 {[%clk 0:02:30.6]} 10... cxd6 {[%clk 0:02:44.8]} 11. d5
{[%clk 0:02:30.4]} 11... exd5 {[%clk 0:02:31.5]} 12. Bxb6 {[%clk 0:02:21.6]}
12... Qxb6 {[%clk 0:02:25.7]} 13. Nxd5 {[%clk 0:02:20.5]} 13... Qxb2 {[%clk
0:02:18.3]} 14. Rb1 {[%clk 0:02:09.2]} 14... Qxa2 {[%clk 0:02:13.5]} 15. Rxb7
{[%clk 0:02:09.5]} 15... Bd8 {[%clk 0:01:56]} 16. Nc3 {[%clk 0:01:55.8]} 16...
Qa5 {[%clk 0:01:49]} 17. Nb5 {[%clk 0:01:52.3]} 17... Bc8 {[%clk 0:01:24.4]} 18.
Nxd6 {[%clk 0:01:44.4]} 18... Bxb7 {[%clk 0:01:23.8]} 19. Nxb7 {[%clk
0:01:44.8]} 19... Qc7 {[%clk 0:01:23.4]} 20. Nxd8 {[%clk 0:01:40.2]} 20... Rfxd8
{[%clk 0:01:22]} 21. Qa1 {[%clk 0:01:30.9]} 21... a5 {[%clk 0:01:17.1]} 22. Qa4
{[%clk 0:01:27.6]} 22... Nd4 {[%clk 0:01:11.3]} 23. Nxd4 {[%clk 0:01:22.4]}
23... Rxd4 {[%clk 0:01:10.7]} 24. Ra1 {[%clk 0:01:19.9]} 24... h6 {[%clk
0:01:05.9]} 25. g3 {[%clk 0:01:18.4]} 25... Rd2 {[%clk 0:00:56.5]} 26. Bf3
{[%clk 0:01:16.9]} 26... Rc8 {[%clk 0:00:55.9]} 27. Bd5 {[%clk 0:01:16]} 27...
Qc5 {[%clk 0:00:51.1]} 28. Rf1 {[%clk 0:01:15.3]} 28... Rf8 {[%clk 0:00:30.2]}
29. Qd7 {[%clk 0:01:08.7]} 29... Qb4 {[%clk 0:00:26.3]} 30. Qf5 {[%clk
0:01:05.1]} 30... a4 {[%clk 0:00:23.9]} 31. c5 {[%clk 0:00:45.9]} 31... Qd4
{[%clk 0:00:18.1]} 32. Be4 {[%clk 0:00:33.1]} 32... g6 {[%clk 0:00:17.3]} 33.
Qf4 {[%clk 0:00:33]} 33... Re2 {[%clk 0:00:11.4]} 34. Bf3 {[%clk 0:00:20.2]}
34... Qxf4 {[%clk 0:00:10.5]} 35. gxf4 {[%clk 0:00:20.7]} 35... Rc2 {[%clk
0:00:11.4]} 36. c6 {[%clk 0:00:20.5]} 36... a3 {[%clk 0:00:11.6]} 37. Bd5 {[%clk
0:00:15.6]} 37... a2 {[%clk 0:00:11.2]} 38. Ra1 {[%clk 0:00:16]} 38... Rd8
{[%clk 0:00:11.4]} 39. Bxa2 {[%clk 0:00:14.7]} 39... Rxc6 {[%clk 0:00:09.3]} 40.
Bb3 {[%clk 0:00:14.1]} 40... Kg7 {[%clk 0:00:09.1]} 41. Ra7 {[%clk 0:00:13.2]}
41... Rf6 {[%clk 0:00:10]} 42. Kg2 {[%clk 0:00:12.6]} 42... Rxf4 {[%clk
0:00:09.8]} 43. Kg3 {[%clk 0:00:09.2]} 43... Rf6 {[%clk 0:00:10.7]} 44. Bc4
{[%clk 0:00:06.9]} 44... Rd4 {[%clk 0:00:10.2]} 45. Rc7 {[%clk 0:00:05.1]} 45...
h5 {[%clk 0:00:09.3]} 46. h3 {[%clk 0:00:03.9]} 46... h4+ {[%clk 0:00:08.7]} 47.
Kg2 {[%clk 0:00:03.5]} 47... Rd2 {[%clk 0:00:08.5]} 48. Bb3 {[%clk 0:00:01.1]}
48... Rfxf2+ {[%clk 0:00:07.2]} 49. Kg1 {[%clk 0:00:01.5]} 49... Rg2+ {[%clk
0:00:06.8]} 50. Kf1 {[%clk 0:00:01.7]} 50... Rdf2+ {[%clk 0:00:06.5]} 51. Ke1
{[%clk 0:00:02.3]} 51... Rf6 {[%clk 0:00:06.7]} 52. Bd5 {[%clk 0:00:01.4]} 52...
Rg3 {[%clk 0:00:06.2]} 0-1